bitfinex/quotes_ETHUSD_20250523
["timestamp","ask_amount","ask_price","bid_price","bid_amount"]
[1747980241808,6.0,2693.1,2692.7,8.0]
[1747980242007,6.0,2693.8,2692.8,0.03713335]
[1747980242299,3.71288328,2693.4,2692.5,8.0]
[1747980242503,3.71289034,2693.4,2692.8,8.0]
[1747980242672,3.71289034,2693.4,2692.8,3.71358394]
[1747980242874,3.71246452,2693.7,2693.0,3.71330318]
[1747980243075,5.13993494,2693.7,2693.1,25.495]
[1747980243298,3.71236746,2693.7,2693.2,8.0]
[1747980243520,0.85,2693.9,2693.2,8.0]
[1747980243816,4.56218425,2693.9,2693.4,8.0]
[1747980243986,0.85,2693.9,2693.5,16.024]
[1747980244314,0.85,2693.9,2693.6,33.494]
[1747980244612,0.85,2693.9,2693.6,29.20644896]
[1747980244769,0.85,2693.9,2693.7,8.0]
[1747980247500,0.85,2693.9,2693.8,3.71222807]
[1747980247822,0.85,2693.9,2693.7,11.71234674]
[1747980247970,0.85,2693.9,2693.7,8.0]
[1747980248811,3.71250371,2693.6,2693.5,16.024]
[1747980248981,3.71242326,2693.7,2693.5,41.514]
[1747980249185,3.71222807,2693.8,2693.5,41.514]
[1747980249186,3.71227149,2693.8,2693.5,41.514]
[1747980249393,0.85,2693.9,2693.6,8.0]
[1747980250370,1.03679,2693.9,2693.6,8.0]
[1747980250572,4.74888125,2693.9,2693.8,8.0]
[1747980251206,3.71250371,2693.6,2693.5,16.024]
[1747980251413,3.71250371,2693.6,2693.5,30.388]
[1747980251414,4.71840371,2693.6,2693.5,30.388]
[1747980251614,5.56148085,2693.6,2693.5,38.388]
[1747980253310,6.11148085,2693.6,2693.5,30.388]
[1747980254695,6.11148085,2693.6,2693.5,16.024]
[1747980254896,6.11148085,2693.6,2693.5,30.387]
[1747980255622,3.71360665,2692.8,2692.7,16.021]
[1747980255784,4.55858452,2692.8,2692.7,14.363]
[1747980256121,4.73699632,2692.3,2692.2,16.021]
[1747980256319,3.71443429,2692.2,2692.1,14.364]
[1747980256524,3.71457226,2692.1,2692.0,14.364]
[1747980256986,3.71457226,2692.1,2691.7,8.0]
[1747980256987,3.71474122,2692.0,2691.9,19.126]
[1747980257189,3.71474122,2692.0,2691.9,22.364]
[1747980258219,5.00766177,2692.0,2691.9,8.0]
[1747980258518,5.00766177,2692.0,2691.9,14.364]
[1747980258687,5.00766177,2692.0,2691.9,22.364]
[1747980258895,0.74292055,2692.0,2691.9,22.364]
[1747980259194,3.71470706,2692.1,2691.9,22.364]
[1747980259414,3.71471025,2692.0,2691.9,22.364]
[1747980260742,3.7146144,2692.1,2691.9,22.364]
[1747980261087,3.71471025,2692.0,2691.9,22.364]
[1747980261701,3.71459134,2692.1,2691.9,22.364]
[1747980261913,1.07872427,2692.2,2691.9,22.364]
[1747980261914,3.71471025,2692.0,2691.9,22.364]
[1747980262631,3.71540033,2691.5,2691.4,16.021]
[1747980262833,3.7158145,2691.2,2691.1,0.05]
[1747980263122,3.7529662,2691.2,2691.1,0.05]
[1747980263417,8.05898669,2691.2,2691.1,0.05]
[1747980263579,9.24016849,2691.2,2691.1,0.05]
[1747980265705,4.66328126,2690.5,2690.4,30.426]
[1747980266087,5.21328126,2690.5,2690.4,30.426]
[1747980266896,5.21328126,2690.5,2690.4,16.026]
[1747980267097,6.38974095,2690.5,2690.4,16.026]
[1747980268807,3.71719574,2690.2,2690.1,0.05]
[1747980269009,3.71719574,2690.2,2690.1,22.453]
[1747980269449,3.71719574,2690.2,2690.1,14.453]
[1747980269613,4.46062113,2690.2,2690.1,14.453]
[1747980269927,5.01062113,2690.2,2690.1,0.05]
[1747980271247,4.46062113,2690.2,2690.1,0.05]
[1747980271449,9.71695648,2690.4,2690.1,0.05]
[1747980271649,0.9598,2690.8,2690.2,14.406]
[1747980271833,3.71653517,2690.7,2690.3,8.0]
[1747980272007,3.71609067,2691.0,2690.3,8.0]
[1747980272207,9.71598772,2691.1,2690.4,3.71684074]
[1747980272419,3.71567643,2691.3,2690.3,8.0]
[1747980272630,2.83467219,2691.2,2690.3,8.0]
[1747980272835,3.7165209,2690.7,2690.3,8.0]
[1747980273322,3.71678126,2690.5,2690.4,25.542]
[1747980273523,3.71664312,2690.6,2690.5,8.0]
[1747980274475,6.0,2691.2,2690.5,8.0]
[1747980274612,3.7165381,2690.7,2690.5,8.0]
[1747980274813,0.55,2691.1,2690.1,0.05]
[1747980275031,3.71684762,2690.5,2690.3,8.0]
[1747980275644,3.71676312,2690.6,2690.5,8.0]
[1747980275913,2.83467219,2690.9,2690.5,8.0]
[1747980275914,3.71634528,2690.9,2690.5,8.0]
[1747980276122,3.71622877,2690.9,2690.5,8.0]
[1747980276324,3.71641965,2690.8,2690.5,8.0]
[1747980276742,3.7165133,2690.7,2690.5,8.0]
[1747980276947,3.71642755,2690.8,2690.5,8.0]
[1747980277112,3.71628546,2690.9,2690.5,8.0]
[1747980277748,0.67544249,2691.1,2690.5,8.0]
[1747980277934,3.71661369,2690.7,2690.5,8.0]
[1747980278135,0.67544249,2691.1,2690.5,8.0]
[1747980278355,6.0,2691.2,2690.5,8.0]
[1747980278661,3.71578446,2691.3,2690.6,16.036]
[1747980278838,3.71558261,2691.4,2690.7,8.03716068]
[1747980279034,3.71650499,2690.7,2690.6,16.036]
[1747980279244,3.71650499,2690.7,2690.6,30.442]
[1747980279824,8.09697718,2690.7,2690.6,14.406]
[1747980280040,3.71650499,2690.7,2690.6,14.406]
[1747980280235,4.64559334,2691.0,2690.6,14.406]
[1747980280439,6.0,2691.1,2690.7,8.0]
[1747980280640,3.71616743,2691.0,2690.7,8.0]
[1747980280837,6.0,2691.1,2690.7,8.0]
[1747980280838,3.71600916,2691.1,2690.7,8.0]
[1747980281066,3.71569378,2691.3,2690.7,11.7164142]
[1747980281241,3.71569378,2691.3,2690.9,8.0]
[1747980281439,3.71582517,2691.2,2690.9,8.0]
[1747980281831,3.71601766,2691.1,2690.9,8.0]
[1747980282159,3.71584551,2691.2,2690.9,8.0]
[1747980282525,1.34793432,2691.6,2690.9,8.0]
[1747980282730,3.71609067,2691.0,2690.9,8.0]
[1747980283265,4.55785534,2691.0,2690.9,8.0]
[1747980283932,3.71609067,2691.0,2690.9,1.99726324]
[1747980284131,3.71622877,2690.9,2690.8,16.036]
[1747980285147,3.71622877,2690.9,2690.8,30.441]
[1747980286131,3.71622877,2690.9,2690.8,30.442]
[1747980286362,10.26622877,2690.9,2690.8,16.036]
[1747980286581,11.89292828,2690.9,2690.8,16.036]
[1747980287156,9.71622877,2690.9,2690.8,16.036]
[1747980288090,3.71599115,2691.1,2690.8,27.172]
[1747980288231,0.9519,2691.6,2690.8,27.172]
[1747980288427,6.9501,2692.0,2691.3,3.7155421]
[1747980288641,3.71457634,2692.1,2691.4,37.29461035]
[1747980288847,3.71465775,2692.1,2691.5,3.71531712]
[1747980289365,3.71457226,2692.1,2691.4,33.542]
[1747980289680,0.65863962,2692.1,2691.6,8.0]
[1747980289986,3.71498625,2691.8,2691.7,25.542]
[1747980290147,3.71490807,2691.9,2691.7,25.542]
[1747980290484,3.7146921,2692.1,2691.7,25.542]
[1747980290687,6.9501,2692.4,2691.7,25.542]
[1747980290688,3.71482783,2692.0,2691.7,25.542]
[1747980290916,3.71498197,2691.9,2691.7,25.542]
[1747980291344,3.71498625,2691.8,2691.7,33.542]
[1747980292274,3.71498625,2691.8,2691.7,14.406]
[1747980292571,5.40725671,2691.8,2691.7,25.542]
[1747980293273,5.95725671,2691.8,2691.7,14.404]
[1747980295075,3.71615133,2691.0,2690.8,16.036]
[1747980295370,3.71622877,2690.9,2690.8,16.036]
[1747980295560,3.71622877,2690.9,2690.8,41.806]
[1747980295771,3.71614558,2691.0,2690.8,41.806]
[1747980296489,0.74297046,2691.8,2690.8,41.806]
[1747980296638,3.71526229,2691.6,2690.8,45.52230982]
[1747980297001,3.71557106,2691.4,2690.8,45.52230982]
[1747980297141,3.71526229,2691.6,2690.8,41.806]
[1747980297474,3.71567643,2691.3,2690.9,8.0]
[1747980297641,3.71583787,2691.2,2690.9,8.0]
[1747980297835,1.17286618,2691.6,2691.0,11.134]
[1747980298279,3.71563692,2691.4,2691.0,11.134]
[1747980298481,3.71568571,2691.3,2691.1,8.0]
[1747980299276,3.71576515,2691.3,2691.2,14.635]
[1747980299480,3.71576515,2691.3,2691.2,25.769]
[1747980300400,6.0,2691.7,2691.2,25.769]
[1747980300600,6.0,2691.7,2691.1,8.0]
[1747980300601,3.71567643,2691.3,2691.1,8.0]
[1747980300906,3.71567643,2691.3,2691.2,25.769]
[1747980301608,3.71622877,2690.9,2690.8,16.036]
[1747980301808,3.71636687,2690.8,2690.7,14.635]
[1747980301978,3.71650499,2690.7,2690.6,15.22527333]
[1747980302796,4.65680499,2690.7,2690.6,15.22527333]
[1747980302964,4.65680499,2690.7,2690.6,14.635]
[1747980303166,3.71719574,2690.2,2690.0,16.034]
[1747980303372,5.46557324,2690.2,2690.0,16.034]
[1747980303567,5.42842154,2690.2,2689.9,0.59027333]
[1747980303774,6.01557324,2690.2,2689.9,0.59027333]
[1747980303969,6.01557324,2690.2,2689.8,14.635]
[1747980304173,5.97842154,2690.2,2689.8,14.635]
[1747980305716,5.42842154,2690.2,2689.8,14.635]
[1747980306118,3.71719574,2690.2,2689.8,14.635]
[1747980306927,3.71706236,2690.3,2690.0,11.135]
[1747980307132,3.71567643,2691.3,2690.1,8.05]
[1747980307298,3.71692453,2690.4,2690.3,8.0]
[1747980307499,3.71692453,2690.4,2690.3,22.638]
[1747980307799,3.71619103,2691.0,2690.3,26.35500167]
[1747980308003,3.7158145,2691.2,2690.3,22.638]
[1747980308199,1.39240312,2691.4,2690.3,22.638]
[1747980308200,3.71567643,2691.3,2690.3,22.638]
[1747980308430,3.71589558,2691.2,2690.5,8.0]
[1747980308598,3.71589558,2691.2,2690.7,8.0]
[1747980308799,7.04580626,2691.6,2690.8,18.35432361]
[1747980309025,3.71563649,2691.4,2690.9,8.0]
[1747980309214,3.71568614,2691.3,2690.9,8.0]
[1747980309410,1.84046433,2691.8,2690.9,8.0]
[1747980309609,1.84046433,2691.8,2691.0,0.03715613]
[1747980309810,1.84046433,2691.8,2691.3,8.0]
[1747980310143,5.55555904,2691.8,2691.5,8.0]
[1747980310339,3.71526229,2691.6,2691.5,8.0]
[1747980310524,2.42097091,2691.8,2691.5,33.774]
[1747980310710,1.84046433,2691.8,2691.5,33.774]
[1747980310912,3.71540033,2691.5,2691.4,16.037]
[1747980311112,3.71567643,2691.3,2691.2,14.637]
[1747980311355,3.71609067,2691.0,2690.9,8.0]
[1747980311503,3.71636687,2690.8,2690.7,8.59027333]
[1747980311834,3.71636687,2690.8,2690.7,23.22727333]
[1747980312030,3.71636687,2690.8,2690.7,15.22727333]
[1747980312234,3.71636687,2690.8,2690.7,23.22727333]
[1747980312537,3.71627671,2690.9,2690.7,23.22727333]
[1747980312836,3.71636687,2690.8,2690.7,22.637]
[1747980313336,4.65591121,2691.5,2690.7,22.637]
[1747980313515,1.40599112,2691.5,2690.7,22.637]
[1747980313829,3.71636687,2690.8,2690.7,22.637]
[1747980314032,3.71624761,2690.9,2690.7,22.637]
[1747980314207,3.71554932,2691.4,2690.7,8.0]
[1747980314408,3.71632284,2690.9,2690.8,14.637]
[1747980315468,3.71636687,2690.8,2690.7,8.0]
[1747980315854,4.45963584,2690.8,2690.7,14.637]
[1747980316657,11.00963584,2690.8,2690.7,14.637]
[1747980317047,10.45963584,2690.8,2690.7,14.637]
[1747980317567,11.00963584,2690.8,2690.7,14.637]
[1747980319265,9.71636687,2690.8,2690.7,14.637]
[1747980319832,0.9432,2691.3,2690.7,25.774]
[1747980320166,3.71498625,2691.8,2691.1,8.0]
[1747980320387,3.71498625,2691.8,2691.2,25.775]
[1747980320586,3.71564294,2691.4,2691.3,14.638]
[1747980321151,3.71553838,2691.4,2691.3,14.638]
[1747980322551,3.71527149,2691.6,2691.3,14.638]
[1747980322749,3.71553838,2691.4,2691.3,14.638]
[1747980324782,5.25213838,2691.4,2691.3,14.638]
[1747980325089,0.55,2691.3,2690.6,16.036]
[1747980325235,3.71650499,2690.7,2690.6,35.172]
[1747980325437,4.45979249,2690.7,2690.6,49.808]
[1747980325677,3.71650499,2690.7,2690.6,49.808]
[1747980325968,0.9698,2691.2,2690.6,49.808]
[1747980326178,3.71630772,2690.9,2690.6,49.808]
[1747980326470,0.9698,2691.2,2690.6,49.808]
[1747980326669,3.71645225,2690.8,2690.6,49.808]
[1747980326838,3.71650499,2690.7,2690.6,49.808]
[1747980328189,3.71613051,2691.0,2690.6,49.808]
[1747980328395,3.71639272,2690.8,2690.6,49.808]
[1747980328750,3.71609067,2691.0,2690.6,49.808]
[1747980328950,3.71647203,2690.8,2690.6,49.808]
[1747980329495,3.71650499,2690.7,2690.6,35.172]
[1747980329714,3.71650499,2690.7,2690.6,49.924]
[1747980330428,3.71640656,2690.8,2690.6,49.924]
[1747980330585,3.71628994,2690.9,2690.6,49.924]
[1747980331476,3.71650499,2690.7,2690.6,49.924]
[1747980334512,3.71597188,2691.1,2690.6,49.924]
[1747980334756,3.71650499,2690.7,2690.6,38.788]
[1747980335055,3.71650499,2690.7,2690.6,49.924]
[1747980336045,3.71650499,2690.7,2690.6,24.036]
[1747980336345,3.71650499,2690.7,2690.6,49.925]
[1747980336541,5.17470499,2690.7,2690.6,30.789]
[1747980336739,6.6638129,2690.7,2690.6,30.789]
[1747980336943,3.71719574,2690.2,2690.1,1.04027333]
[1747980337261,3.71719574,2690.2,2690.1,34.92927333]
[1747980337950,3.71719574,2690.2,2690.1,34.339]
[1747980338251,3.71719574,2690.2,2690.1,23.203]
[1747980338435,3.71719574,2690.2,2690.1,34.339]
[1747980338627,5.95172189,2690.2,2690.1,0.45]
[1747980341238,11.95172189,2690.2,2690.1,0.45]
[1747980344328,5.16142498,2689.6,2689.5,14.757]
[1747980344535,11.16142498,2689.6,2689.5,14.757]
[1747980345761,3.71857801,2689.2,2689.1,0.05]
[1747980345968,3.71857801,2689.2,2689.1,14.809]
[1747980346149,5.18997801,2689.2,2689.1,0.05]
[1747980346331,3.71982293,2688.3,2688.1,0.05]
[1747980346534,3.71973004,2688.4,2688.1,8.05]
[1747980347064,3.71973004,2688.4,2688.2,0.63977333]
[1747980347375,3.71923661,2688.8,2688.4,8.0]
[1747980347526,3.71925977,2688.8,2688.5,14.759]
[1747980347725,6.0,2689.0,2688.5,14.759]
[1747980347927,3.71940787,2688.6,2688.5,14.759]
[1747980348125,3.71955159,2688.5,2688.2,0.0495]
[1747980348377,3.71959637,2688.5,2688.3,25.899]
[1747980348860,3.71941738,2688.6,2688.3,25.899]
[1747980349062,3.71957839,2688.5,2688.3,25.899]
[1747980349421,0.55,2688.9,2688.3,25.899]
[1747980349775,0.42689042,2688.8,2688.2,0.0495]
[1747980349978,3.71982293,2688.3,2688.2,0.0495]
[1747980350270,3.71968485,2688.4,2688.3,14.76]
[1747980350496,3.71996131,2688.2,2688.1,0.05]
[1747980350686,4.09195744,2688.2,2688.1,14.81]
[1747980351670,3.71996131,2688.2,2688.1,14.81]
[1747980352442,4.26996131,2688.2,2688.1,14.813]
[1747980353072,3.71996131,2688.2,2688.1,14.813]
[1747980353283,26.47831661,2689.4,2688.2,0.0495]
[1747980353284,0.42689042,2688.8,2688.2,0.0495]
[1747980353431,3.71990444,2688.3,2688.1,14.813]
[1747980353772,3.71963007,2688.5,2688.1,14.813]
[1747980354137,3.71922676,2688.8,2688.2,0.0495]
[1747980354344,3.71952724,2688.6,2688.2,0.0495]
[1747980354544,3.7192409,2688.8,2688.2,0.0495]
[1747980354799,1.48793158,2689.5,2688.2,0.0495]
[1747980354986,3.71921242,2688.8,2688.3,0.0495]
[1747980355271,3.71921242,2688.8,2688.4,27.191]
[1747980355770,3.71927092,2688.7,2688.4,27.191]
[1747980356339,3.71941503,2688.6,2688.4,27.191]
[1747980356540,3.71954621,2688.5,2688.4,16.048]
[1747980356969,3.71954621,2688.5,2688.4,30.803]
[1747980357552,3.71949659,2688.6,2688.4,30.803]
[1747980357750,0.55,2689.0,2688.4,30.803]
[1747980358075,0.51853094,2689.0,2688.4,30.803]
[1747980358243,3.71922459,2688.8,2688.4,30.803]
[1747980358441,3.71927798,2688.7,2688.5,8.0]
[1747980358746,3.71924544,2688.8,2688.5,8.0]
[1747980358948,0.9165,2689.2,2688.5,8.0]
[1747980359365,3.71940787,2688.6,2688.5,8.0]
[1747980360872,6.0,2689.0,2688.5,8.0]
[1747980361094,3.71954621,2688.5,2688.4,30.803]
[1747980361378,3.71954621,2688.5,2688.4,30.804]
[1747980363081,4.26954621,2688.5,2688.4,16.048]
[1747980363243,12.13525915,2688.5,2688.4,16.048]
[1747980364550,4.26996131,2688.2,2688.1,0.05]
[1747980364744,10.26996131,2688.2,2688.1,14.807]
[1747980365413,11.19426131,2688.2,2688.1,0.05]
[1747980365573,13.69367026,2688.2,2688.1,0.05]
[1747980368190,31.77367026,2688.2,2688.1,0.05]
[1747980368391,23.77367026,2688.2,2688.1,0.05]
[1747980369715,23.77367026,2688.2,2686.8,0.0533]
[1747980369716,4.27134563,2687.2,2686.8,0.0533]
[1747980370014,4.27134563,2687.2,2687.1,15.211]
[1747980370191,4.69848019,2687.2,2687.1,15.211]
[1747980371085,4.14848019,2687.2,2687.1,15.211]
[1747980371322,3.72134563,2687.2,2687.1,15.211]
[1747980371819,4.27134563,2687.2,2687.1,0.45]
[1747980372520,4.27162262,2687.0,2686.9,14.761]
[1747980372722,3.72226187,2686.6,2685.9,3.72305277]
[1747980372882,3.72233325,2686.5,2686.0,14.763]
[1747980373084,0.55,2687.0,2686.0,14.763]
[1747980373085,0.42714841,2686.9,2686.0,14.763]
[1747980373424,3.72201597,2686.8,2686.1,3.72286958]
[1747980373633,3.72219795,2686.6,2686.2,11.148]
[1747980374189,3.72148412,2687.1,2686.2,11.148]
[1747980374408,3.72219106,2686.6,2686.2,11.148]
[1747980374584,3.72231667,2686.5,2686.2,11.148]
[1747980374791,0.42714841,2687.1,2686.2,11.148]
[1747980375095,0.55,2687.3,2686.2,11.148]
[1747980375433,0.55,2687.3,2686.3,16.056]
[1747980375895,0.9231,2687.8,2686.3,19.77852943]
[1747980376097,3.72128985,2687.3,2686.6,3.72205144]
[1747980376317,3.72144357,2687.2,2686.7,14.764]
[1747980376497,3.72144357,2687.2,2686.8,11.15]
[1747980376901,3.72079178,2687.6,2686.8,11.15]
[1747980377111,3.72159559,2687.1,2686.4,8.0]
[1747980377282,3.72159559,2687.1,2686.6,8.0]
[1747980377487,3.7217244,2687.0,2686.6,8.0]
[1747980377720,3.7217244,2687.0,2686.7,25.915]
[1747980378022,3.72176113,2686.9,2686.8,25.915]
[1747980378719,3.72210461,2686.7,2686.6,11.151]
[1747980378926,3.72210461,2686.7,2686.6,25.915]
[1747980380337,3.72221511,2686.6,2686.4,8.0]
[1747980380493,3.72180944,2686.9,2686.5,25.915]
[1747980380688,3.72197965,2686.8,2686.5,25.915]
[1747980380909,3.72180406,2686.9,2686.6,25.915]
[1747980381101,3.72203818,2686.7,2686.6,25.915]
[1747980381616,3.72196012,2686.8,2686.6,25.915]
[1747980382007,3.72203818,2686.7,2686.6,25.915]
[1747980382314,3.72203818,2686.7,2686.6,25.916]
[1747980382728,3.72141249,2687.2,2686.6,25.916]
[1747980382890,3.72219939,2686.6,2686.4,8.0]
[1747980383086,3.72219939,2686.6,2686.5,33.916]
[1747980383432,3.72197738,2686.8,2686.5,33.916]
[1747980383591,3.72204399,2686.7,2686.5,33.916]
[1747980384318,0.55,2687.2,2686.5,33.916]
[1747980384556,3.72196613,2686.8,2686.5,33.916]
[1747980384757,3.72196613,2686.8,2686.6,11.151]
[1747980384924,3.72214609,2686.7,2686.6,11.151]
[1747980385124,3.72204344,2686.7,2686.6,25.916]
[1747980385721,0.55,2686.5,2685.2,1.17159037]
[1747980385916,3.72397869,2685.3,2685.2,1.17159037]
[1747980386222,0.0371517,2685.3,2685.2,15.93659037]
[1747980386562,3.72283252,2686.2,2685.3,0.0286]
[1747980386563,0.9334,2686.0,2685.3,0.0286]
[1747980386719,3.72315478,2685.9,2685.3,8.0286]
[1747980386917,3.7227107,2686.3,2685.4,0.03723717]
[1747980387170,0.9171,2687.1,2686.1,0.0286]
[1747980387507,0.44004183,2687.2,2686.7,8.0286]
[1747980387622,3.72176113,2686.9,2686.8,16.058]
[1747980387825,3.72231528,2686.5,2686.4,16.058]
[1747980388265,3.72367029,2685.6,2685.2,1.17159037]
[1747980388454,0.892,2686.5,2685.5,15.003]
[1747980388455,3.72245384,2686.4,2685.5,15.003]
[1747980388758,3.7235627,2685.6,2685.5,15.003]
[1747980388958,3.7235627,2685.6,2685.2,1.17159037]
[1747980389164,3.72411738,2685.2,2685.1,11.203]
[1747980389456,3.72411738,2685.2,2685.1,15.053]
[1747980390464,0.9337,2685.9,2685.1,15.053]
[1747980390670,3.72347147,2685.7,2685.2,8.0]
[1747980391187,0.978,2686.2,2685.2,8.0]
[1747980391367,3.72320244,2685.9,2685.2,11.724054]
[1747980391564,3.72286958,2686.1,2685.2,11.724054]
[1747980391778,0.978,2686.2,2685.2,8.0]
[1747980392098,3.72328547,2685.8,2685.2,8.0]
[1747980392267,3.72318947,2685.9,2685.2,11.72399902]
[1747980392470,3.72318947,2685.9,2685.4,8.0]
[1747980392893,0.74460591,2685.9,2685.4,8.0]
[1747980393071,3.72313155,2686.0,2685.4,8.0]
[1747980393254,3.72288797,2686.1,2685.4,8.0]
[1747980393458,3.72237998,2686.5,2685.3,0.0286]
[1747980393459,0.9224,2686.5,2685.3,0.0286]
[1747980393658,3.72262658,2686.3,2685.6,3.72345323]
[1747980393997,3.72262658,2686.3,2685.8,8.0]
[1747980394163,3.72250669,2686.4,2685.8,8.0]
[1747980394370,3.72217672,2686.6,2685.8,8.0]
[1747980394699,3.722486,2686.4,2685.8,8.0]
[1747980394994,3.722486,2686.4,2685.8,19.156]
[1747980394995,3.7227501,2686.2,2685.8,19.156]
[1747980395204,3.72290714,2686.1,2685.8,19.156]
[1747980395607,3.72275671,2686.2,2685.8,19.156]
[1747980395911,3.72275671,2686.2,2685.9,15.007]
[1747980395912,0.37227567,2686.1,2685.9,15.007]
[1747980396209,3.72275671,2686.2,2685.9,15.007]
[1747980396507,0.74813666,2686.5,2685.9,15.007]
[1747980396712,3.72273836,2686.2,2685.9,15.007]
[1747980397012,3.72278731,2686.2,2685.9,15.007]
[1747980397383,0.74813666,2686.5,2685.9,15.007]
[1747980397612,3.72300819,2686.0,2685.7,16.064]
[1747980397967,3.72328542,2685.8,2685.7,16.064]
[1747980398212,3.72300819,2686.0,2685.1,0.05]
[1747980398409,0.46807082,2685.9,2685.4,16.064]
[1747980398610,3.72370135,2685.5,2685.4,16.064]
[1747980399479,3.72347696,2685.7,2685.4,16.064]
[1747980399904,4.68062207,2686.1,2685.4,16.064]
[1747980400125,3.7231468,2685.9,2685.5,15.008]
[1747980400429,0.52306221,2686.0,2685.5,15.008]
[1747980400587,3.72354255,2685.7,2685.5,15.008]
[1747980400798,3.72346184,2685.7,2685.5,15.008]
[1747980401118,3.7235627,2685.6,2685.5,15.008]
[1747980401491,0.52306221,2686.0,2685.5,15.008]
[1747980401688,0.9577,2686.1,2685.5,15.008]
[1747980402016,4.68060315,2686.1,2685.5,15.008]
[1747980402515,3.7235627,2685.6,2685.5,15.008]
[1747980403322,3.72346467,2685.7,2685.5,15.008]
[1747980403523,6.0,2686.5,2685.5,15.008]
[1747980403709,3.72309707,2686.0,2685.6,8.0286]
[1747980403877,3.72325056,2685.9,2685.6,8.0286]
[1747980404479,3.72336547,2685.8,2685.6,8.0286]
[1747980404679,3.72320632,2685.9,2685.6,8.0286]
[1747980404925,3.72342406,2685.7,2685.6,8.0286]
[1747980405154,3.7233264,2685.8,2685.6,8.0286]
[1747980405414,3.72342406,2685.7,2685.6,8.0286]
[1747980406311,3.72337154,2685.8,2685.6,8.0286]
[1747980406521,3.72320598,2685.9,2685.6,8.0286]
[1747980406675,4.67033711,2686.7,2685.6,8.0286]
[1747980406880,3.7229292,2686.1,2685.6,8.0286]
[1747980407120,3.72259241,2686.3,2685.6,8.0286]
[1747980407279,3.72339085,2685.8,2685.6,8.0286]
[1747980407481,3.72342406,2685.7,2685.6,8.0286]
[1747980407706,3.72342406,2685.7,2685.6,34.1936]
[1747980407914,3.72300819,2686.0,2685.4,16.064]
[1747980408084,3.7235627,2685.6,2685.5,34.165]
[1747980408479,3.7235627,2685.6,2685.5,8.0]
[1747980408683,3.7235627,2685.6,2685.5,23.008]
[1747980409105,3.7235627,2685.6,2685.5,8.0]
[1747980409517,3.7235627,2685.6,2685.5,23.008]
[1747980409703,3.72353999,2685.7,2685.5,23.008]
[1747980410307,3.72345282,2685.7,2685.5,23.008]
[1747980410494,4.63890113,2686.1,2685.5,23.008]
[1747980410822,3.7235627,2685.6,2685.5,23.008]
[1747980411015,3.72348234,2685.7,2685.5,23.008]
[1747980411924,3.72259241,2686.3,2685.6,0.0286]
[1747980412226,3.72342406,2685.7,2685.6,0.0286]
[1747980412520,3.72337484,2685.8,2685.6,0.0286]
[1747980412887,3.72331331,2685.8,2685.6,0.0286]
[1747980413191,3.72337314,2685.8,2685.6,0.0286]
[1747980413392,3.72342406,2685.7,2685.6,0.0286]
[1747980413622,3.72322471,2685.9,2685.6,0.0286]
[1747980413829,3.72328542,2685.8,2685.7,11.157]
[1747980414899,3.7230357,2686.0,2685.7,11.157]
[1747980415220,3.72323315,2685.9,2685.7,11.157]
[1747980415610,3.72328542,2685.8,2685.7,19.157]
[1747980416624,3.72270364,2686.3,2685.8,8.0]
[1747980418243,9.72232755,2686.5,2685.8,8.0]
[1747980418244,3.72274663,2686.2,2685.8,8.0]
[1747980418431,3.72274663,2686.2,2685.8,8.59095339]
[1747980419321,3.72265068,2686.3,2685.8,8.59095339]
[1747980419640,3.72274993,2686.2,2685.8,8.59095339]
[1747980420144,3.72189965,2686.8,2685.8,0.59095339]
[1747980420354,0.55,2686.7,2686.0,8.0]
[1747980420530,3.72285887,2686.2,2686.1,15.087]
[1747980420736,3.72264496,2686.3,2686.1,15.087]
[1747980422215,3.72273099,2686.2,2686.1,15.087]
[1747980422455,3.72273099,2686.2,2686.1,26.243]
[1747980422856,3.72286958,2686.1,2686.0,11.156]
[1747980423159,3.72286958,2686.1,2686.0,34.242]
[1747980423659,3.72278687,2686.2,2686.0,34.242]
[1747980423860,0.74433793,2686.9,2686.0,34.242]
[1747980423861,3.72271557,2686.3,2686.0,34.242]
[1747980424171,1.71973793,2686.9,2686.2,0.0799]
[1747980424459,3.72189965,2686.8,2686.2,0.0799]
[1747980424661,3.72240396,2686.5,2686.2,0.0799]
[1747980424831,3.72240396,2686.5,2686.4,8.0]
[1747980425025,3.72240396,2686.5,2686.4,15.086]
[1747980425026,11.18471528,2686.5,2686.4,15.086]
[1747980425232,12.30318681,2686.5,2686.4,15.086]
[1747980426663,3.72263737,2686.3,2685.4,0.59095339]
[1747980426964,3.7235627,2685.6,2685.5,42.307]
[1747980428360,3.72335041,2685.8,2685.5,42.307]
[1747980428562,4.64991242,2686.1,2685.5,42.307]
[1747980428867,3.72352436,2685.7,2685.5,42.307]
[1747980429068,3.7235627,2685.6,2685.5,42.307]
[1747980429457,3.72345373,2685.7,2685.5,42.307]
[1747980429657,3.7235627,2685.6,2685.5,42.307]
[1747980430471,3.7235627,2685.6,2685.5,31.151]
[1747980430672,3.7235627,2685.6,2685.5,16.065]
[1747980430833,4.46826185,2685.6,2685.5,42.308]
[1747980431028,3.7235627,2685.6,2685.5,42.308]
[1747980431266,3.7235627,2685.6,2685.5,16.065]
[1747980431471,3.7235627,2685.6,2685.5,31.152]
[1747980432876,10.2735627,2685.6,2685.5,16.065]
[1747980433077,3.72423486,2685.2,2684.6,8.0]
[1747980433383,11.2222627,2685.6,2684.6,8.0]
[1747980433384,3.72370135,2685.5,2684.6,8.0]